fUSD/lending_fUSD_20250106
["ID","MTS","AMOUNT","RATE_DAILY","PERIOD"]
[347838515,1736146252105,-500.0,0.0001041,2]
[347838516,1736146252114,-768.67,0.0001041,2]
[347838517,1736146252123,-569.39,0.0001041,2]
[347838518,1736146252133,-700.11,0.0001041,2]
[347838519,1736146252142,-785.52,0.0001041,2]
[347838520,1736146252152,-500.0,0.0001041,2]
[347838521,1736146252161,-500.0,0.0001041,2]
[347838522,1736146252170,-1317.62,0.0001041,2]
[347838523,1736146252180,-500.0,0.0001041,2]
[347838524,1736146252189,-500.0,0.0001041,2]
[347838525,1736146252198,-500.0,0.0001041,2]
[347838526,1736146252208,-672.37,0.0001041,2]
[347838527,1736146252218,-500.0,0.0001041,2]
[347838528,1736146252227,-500.0,0.0001041,2]
[347838529,1736146252236,-3343.13,0.0001041,2]
[347838530,1736146252246,-500.0,0.0001041,2]
[347838531,1736146252255,-500.0,0.0001041,2]
[347838532,1736146252265,-500.0,0.0001041,2]
[347838533,1736146252275,-500.0,0.0001041,2]
[347838534,1736146252285,-500.0,0.0001041,2]
[347838535,1736146252294,-500.0,0.0001041,2]
[347838536,1736146252304,-500.0,0.0001041,2]
[347838537,1736146252313,-1000.0,0.0001041,2]
[347838538,1736146252323,-500.0,0.0001041,2]
[347838539,1736146252332,-500.0,0.0001041,2]
[347838540,1736146252341,-536.63,0.0001041,2]
[347838541,1736146252351,-507.32,0.0001041,2]
[347838542,1736146252360,-500.0,0.0001041,2]
[347838543,1736146252370,-500.0,0.0001041,2]
[347838544,1736146252380,-500.0,0.0001041,2]
[347838545,1736146252390,-500.0,0.0001041,2]
[347838546,1736146252399,-500.0,0.0001041,2]
[347838547,1736146252409,-500.0,0.0001041,2]
[347838548,1736146252418,-1691.28,0.0001041,2]
[347838549,1736146252427,-500.0,0.0001041,2]
[347838550,1736146252437,-716.23,0.0001041,2]
[347838551,1736146252446,-500.0,0.0001041,2]
[347838552,1736146252455,-500.0,0.0001041,2]
[347838553,1736146252465,-500.0,0.0001041,2]
[347838554,1736146252474,-602.7,0.0001041,2]
[347838555,1736146252484,-500.0,0.0001041,2]
[347838556,1736146252494,-500.0,0.0001041,2]
[347838557,1736146252503,-500.0,0.0001041,2]
[347838558,1736146252512,-500.0,0.0001041,2]
[347838559,1736146252522,-500.0,0.0001041,2]
[347838560,1736146252531,-709.13,0.0001041,2]
[347838561,1736146252541,-1000.0,0.00010424,2]
[347838562,1736146252551,-14765.55566965,0.00010451,2]
[347838563,1736146252561,-530.34,0.0001046,2]
[347838564,1736146252570,-150.99,0.00010475,2]
[347838565,1736146252580,-9999.99,0.00010475,2]
[347838566,1736146252589,-480.72,0.00010475,2]
[347838567,1736146252598,-999.99,0.00010475,2]
[347838568,1736146252608,-463.58,0.00010475,2]
[347838569,1736146252617,-150.99,0.00010475,2]
[347838570,1736146252627,-7898.43,0.00010475,2]
[347838571,1736146252636,-500.0,0.00010479,2]
[347838572,1736146252646,-500.0,0.00010547,2]
[347838573,1736146252655,-500.0,0.00010547,2]
[347838574,1736146252665,-500.0,0.00010547,2]
[347838575,1736146252675,-500.0,0.00010547,2]
[347838576,1736146252684,-500.0,0.00010547,2]
[347838577,1736146252693,-500.0,0.00010547,2]
[347838578,1736146252703,-500.0,0.00010547,2]
[347838579,1736146252712,-500.0,0.00010547,2]
[347838580,1736146252722,-500.0,0.00010547,2]
[347838581,1736146252732,-500.0,0.00010547,2]
[347838582,1736146252741,-500.0,0.00010547,2]
[347838583,1736146252751,-500.0,0.00010547,2]
[347838584,1736146252760,-500.0,0.00010547,2]
[347838585,1736146252769,-500.0,0.00010547,2]
[347838586,1736146252780,-500.0,0.00010547,2]
[347838587,1736146252792,-343.77,0.00010547,2]
[347838588,1736146252801,-500.0,0.00010547,2]
[347838589,1736146252810,-500.0,0.00010547,2]
[347838590,1736146252820,-500.0,0.00010547,2]
[347838591,1736146252829,-500.0,0.00010547,2]
[347838592,1736146252838,-500.0,0.00010547,2]
[347838593,1736146252847,-500.0,0.00010547,2]
[347838594,1736146252857,-500.0,0.00010547,2]
[347838595,1736146252866,-500.0,0.00010547,2]
[347838596,1736146252877,-294.95888902,0.00010547,2]
[347838597,1736146252886,-500.0,0.00010547,2]
[347838598,1736146252895,-500.0,0.00010547,2]
[347838599,1736146252904,-500.0,0.00010547,2]
[347838600,1736146252914,-500.0,0.00010547,2]
[347838601,1736146252923,-500.0,0.00010547,2]
[347838602,1736146252932,-500.0,0.00010547,2]
[347838603,1736146252940,-500.0,0.00010547,2]
[347838604,1736146252949,-500.0,0.00010547,2]
[347838605,1736146252958,-500.0,0.00010547,2]
[347838606,1736146252967,-503.55418734,0.00010547,2]
[347838607,1736146252977,-500.0,0.00010547,2]
[347838608,1736146252987,-500.0,0.00010547,2]
[347838609,1736146252996,-500.0,0.00010547,2]
[347838610,1736146253006,-500.0,0.00010547,2]
[347838611,1736146253015,-587.21,0.00010547,2]
[347838612,1736146253024,-539.51414267,0.00010547,2]
[347838613,1736146253035,-500.0,0.00010547,2]
[347838614,1736146253044,-500.0,0.00010547,2]
[347838615,1736146253054,-500.0,0.00010547,2]
[347838616,1736146253063,-4772.46,0.00010547,2]
[347838617,1736146253073,-4343.04,0.00010547,2]
[347838618,1736146253083,-500.0,0.00010547,2]
[347838619,1736146253092,-500.0,0.00010547,2]
[347838620,1736146253101,-278.76,0.00010547,2]
[347838621,1736146253111,-1700.1,0.00010547,2]
[347838622,1736146253120,-500.0,0.00010547,2]
[347838623,1736146253130,-1677.41,0.00010547,2]
[347838624,1736146253139,-1979.36,0.00010547,2]
[347838625,1736146253149,-500.0,0.00010547,2]
[347838626,1736146253158,-2912.5,0.00010547,2]
[347838627,1736146253167,-637.75,0.00010547,2]
[347838628,1736146253176,-500.0,0.00010547,2]
[347838629,1736146253186,-2622.3,0.00010547,2]
[347838630,1736146253195,-758.31,0.00010547,2]
[347838631,1736146253205,-500.0,0.00010547,2]
[347838632,1736146253214,-500.0,0.00010547,2]
[347838633,1736146253224,-606.76,0.00010547,2]
[347838634,1736146253233,-500.0,0.00010547,2]
[347838635,1736146253243,-500.0,0.00010547,2]
[347838636,1736146253252,-500.0,0.00010547,2]
[347838637,1736146253261,-277.40319844,0.00010547,2]
[347838638,1736146253271,-500.0,0.00010547,2]
[347838639,1736146253281,-500.0,0.00010547,2]
[347838640,1736146253290,-194.67079148,0.00010547,2]
[347838641,1736146253300,-500.0,0.00010547,2]
[347838642,1736146253309,-244.86939466,0.00010581,2]
[347838643,1736146253319,-500.0,0.00010581,2]
[347838644,1736146253328,-500.0,0.00010581,2]
[347838645,1736146253495,-390.21,0.00010581,2]
[347838646,1736146253505,-500.0,0.00010581,2]
[347838647,1736146253515,-500.0,0.00010581,2]
[347838648,1736146253524,-500.0,0.00010581,2]
[347838649,1736146253536,-269.37,0.00010581,2]
[347838650,1736146253547,-500.0,0.00010581,2]
[347838651,1736146253557,-500.0,0.00010581,2]
[347838652,1736146253567,-500.0,0.00010581,2]
[347838653,1736146253577,-1107.86,0.00010581,2]
[347838654,1736146253587,-256.07,0.00010581,2]
[347838655,1736146253598,-526.06,0.00010581,2]
[347838656,1736146253608,-4758.37,0.00010581,2]
[347838657,1736146253618,-500.0,0.00010581,2]
[347838658,1736146253627,-556.63,0.00010581,2]
[347838659,1736146253636,-500.0,0.00010581,2]
[347838660,1736146253645,-500.0,0.00010581,2]
[347838661,1736146253655,-500.0,0.00010581,2]
[347838662,1736146253664,-1493.4,0.00010581,2]
[347838663,1736146253674,-500.0,0.00010581,2]
[347838664,1736146253684,-500.0,0.00010581,2]
[347838665,1736146253694,-2244.15,0.00010581,2]
[347838666,1736146253703,-296.21585868,0.00010581,2]
[347838667,1736146253713,-632.11,0.00010581,2]
[347838668,1736146253722,-186.01649338,0.00010581,2]
[347838669,1736146253732,-500.0,0.00010581,2]
[347838670,1736146253741,-500.0,0.00010581,2]
[347838671,1736146253751,-368.77,0.00010581,2]
[347838672,1736146253762,-1083.83,0.00010581,2]
[347838673,1736146253774,-1023.4,0.00010581,2]
[347838674,1736146253785,-460.71,0.00010581,2]
[347838675,1736146253796,-500.0,0.00010581,2]
[347838676,1736146253807,-515.09115546,0.00010581,2]
[347838677,1736146253816,-10058.2318505,0.00010649,2]
[347838678,1736146253825,-1657.33,0.00010681,2]
[347838679,1736146253835,-704.79,0.00010681,2]
[347838680,1736146253846,-500.0,0.00010682,2]
[347838681,1736146253856,-1019.75,0.00010682,2]
[347838682,1736146253865,-500.0,0.00010682,2]
[347838683,1736146253875,-195.59,0.00010682,2]
[347838684,1736146253885,-500.0,0.00010682,2]
[347838685,1736146253894,-500.0,0.00010682,2]
[347838686,1736146253903,-500.0,0.00010682,2]
[347838687,1736146253912,-1544.02,0.00010682,2]
[347838688,1736146253922,-500.0,0.00010682,2]
[347838689,1736146253931,-500.0,0.00010682,2]
[347838690,1736146253941,-500.0,0.00010682,2]
[347838691,1736146253950,-500.0,0.00010682,2]
[347838692,1736146253959,-500.0,0.00010682,2]
[347838693,1736146253968,-500.0,0.00010682,2]
[347838694,1736146253977,-500.0,0.00010682,2]
[347838695,1736146253987,-500.0,0.00010682,2]
[347838696,1736146253996,-500.0,0.00010682,2]
[347838697,1736146254006,-754.58,0.00010682,2]
[347838698,1736146254015,-500.0,0.00010682,2]
[347838699,1736146254024,-500.0,0.00010682,2]
[347838700,1736146254034,-500.0,0.00010682,2]
[347838701,1736146254044,-836.56,0.00010682,2]
[347838702,1736146254053,-1621.684072,0.00010682,2]
[347838703,1736146254062,-500.0,0.00010682,2]
[347838704,1736146254071,-157.403562,0.00010682,2]
[347838705,1736146254080,-500.0,0.00010682,2]
[347838706,1736146254090,-500.0,0.00010682,2]
[347838707,1736146254099,-293.26759815,0.00010682,2]
[347838708,1736146254108,-500.0,0.00010682,2]
[347838709,1736146254118,-500.0,0.00010682,2]
[347838710,1736146254127,-500.0,0.00010682,2]
[347838711,1736146254137,-2716.93,0.00010682,2]
[347838712,1736146254146,-496.64,0.00010682,2]
[347838713,1736146254155,-1758.16002,0.00010682,2]
[347838714,1736146254165,-166.1734635,0.00010682,2]
[347838715,1736146254174,-729.04,0.00010682,2]
[347838716,1736146254183,-500.0,0.00010682,2]
[347838717,1736146254193,-500.0,0.00010682,2]
[347838718,1736146254202,-589.61050639,0.00010682,2]
[347838719,1736146254212,-500.0,0.00010682,2]
[347838720,1736146254221,-500.0,0.00010682,2]
[347838721,1736146254231,-509.36,0.00010682,2]
[347838722,1736146254240,-500.0,0.00010682,2]
[347838723,1736146254250,-500.0,0.00010682,2]
[347838724,1736146254259,-500.0,0.00010682,2]
[347838725,1736146254269,-500.0,0.00010682,2]
[347838726,1736146254279,-500.0,0.00010682,2]
[347838727,1736146254290,-500.0,0.00010682,2]
[347838728,1736146254300,-500.0,0.00010682,2]
[347838729,1736146254310,-500.0,0.00010682,2]
[347838730,1736146254320,-500.0,0.00010682,2]
[347838731,1736146254329,-500.0,0.00010682,2]
[347838732,1736146254338,-344.95,0.00010682,2]
[347838733,1736146254348,-500.0,0.00010682,2]
[347838734,1736146254357,-500.0,0.00010682,2]
[347838735,1736146254367,-500.0,0.00010682,2]
[347838736,1736146254376,-500.0,0.00010682,2]
[347838737,1736146254386,-500.0,0.00010682,2]
[347838738,1736146254395,-500.0,0.00010682,2]
[347838739,1736146254404,-500.0,0.00010682,2]
[347838740,1736146254414,-500.0,0.00010682,2]
[347838741,1736146254423,-1369.64,0.00010682,2]
[347838742,1736146254433,-500.0,0.00010682,2]
[347838743,1736146254442,-500.0,0.00010682,2]
[347838744,1736146254451,-500.0,0.00010682,2]
[347838745,1736146254460,-500.0,0.00010682,2]
[347838746,1736146254470,-500.0,0.00010682,2]
[347838747,1736146254479,-2225.72,0.00010682,2]
[347838748,1736146254488,-1238.2,0.00010682,2]
[347838749,1736146254498,-500.0,0.00010682,2]
[347838750,1736146254507,-500.0,0.00010682,2]
[347838751,1736146254516,-500.0,0.00010682,2]
[347838752,1736146254525,-561.09,0.00010682,2]
[347838753,1736146254535,-845.21,0.00010682,2]
[347838754,1736146254545,-2383.62,0.00010682,2]
[347838755,1736146254554,-500.0,0.00010682,2]
[347838756,1736146254563,-500.0,0.00010682,2]
[347838757,1736146254572,-500.0,0.00010682,2]
[347838758,1736146254581,-500.0,0.00010682,2]
[347838759,1736146254590,-556.23,0.00010682,2]
[347838760,1736146254600,-500.0,0.00010682,2]
[347838761,1736146254609,-5872.59,0.00010682,2]
[347838762,1736146254618,-500.0,0.00010682,2]
[347838763,1736146254627,-589.06,0.00010682,2]
[347838764,1736146254637,-500.0,0.00010682,2]
[347838765,1736146254646,-500.0,0.00010682,2]
[347838766,1736146254655,-673.64,0.00010682,2]
[347838767,1736146254665,-500.0,0.00010682,2]
[347838768,1736146254674,-500.0,0.00010682,2]
[347838769,1736146254683,-465.0,0.00010682,2]
[347838770,1736146254692,-500.0,0.00010682,2]
[347838771,1736146254701,-500.0,0.00010682,2]
[347838772,1736146254710,-500.0,0.00010682,2]
[347838773,1736146254719,-573.25606293,0.00010682,2]
[347838774,1736146254729,-500.0,0.00010682,2]
[347838775,1736146254739,-500.0,0.00010682,2]
[347838776,1736146254748,-500.0,0.00010682,2]
[347838777,1736146254758,-500.0,0.00010682,2]
[347838778,1736146254771,-500.0,0.00010682,2]
[347838779,1736146254780,-500.0,0.00010682,2]
[347838780,1736146254790,-500.0,0.00010682,2]
[347838781,1736146254799,-500.0,0.00010682,2]
[347838782,1736146254809,-500.0,0.00010682,2]
[347838783,1736146254819,-500.0,0.00010682,2]
[347838784,1736146254828,-249.7,0.00010682,2]
[347838785,1736146254838,-500.0,0.00010682,2]
[347838786,1736146254847,-2620.63,0.00010682,2]
[347838787,1736146254857,-515.0,0.00010682,2]
[347838788,1736146254866,-1465.5,0.00010682,2]
[347838789,1736146254876,-500.0,0.00010682,2]
[347838790,1736146254885,-500.0,0.00010682,2]
[347838791,1736146254895,-254.6415904,0.00010682,2]
[347838792,1736146254904,-500.0,0.00010682,2]
[347838793,1736146254914,-502.62,0.00010682,2]
[347838794,1736146254923,-500.0,0.00010682,2]
[347838795,1736146254933,-2213.07,0.00010682,2]
[347838796,1736146254943,-500.0,0.00010682,2]
[347838797,1736146254952,-305.63945206,0.00010682,2]
[347838798,1736146254962,-885.5,0.00010682,2]
[347838799,1736146254972,-500.0,0.00010682,2]
[347838800,1736146254981,-500.0,0.00010682,2]
[347838801,1736146254991,-500.0,0.00010682,2]
[347838802,1736146255000,-3079.1,0.00010682,2]
[347838803,1736146255010,-2813.28,0.00010682,2]
[347838804,1736146255019,-500.0,0.00010682,2]
[347838805,1736146255028,-500.0,0.00010682,2]
[347838806,1736146255038,-500.0,0.00010682,2]
[347838807,1736146255047,-1353.21,0.00010682,2]
[347838808,1736146255056,-500.0,0.00010682,2]
[347838809,1736146255065,-500.0,0.00010682,2]
[347838810,1736146255075,-500.0,0.00010682,2]
[347838811,1736146255084,-500.0,0.00010682,2]
[347838812,1736146255093,-500.0,0.00010682,2]
[347838813,1736146255102,-430.04317514,0.00010682,2]
[347838814,1736146255111,-500.0,0.00010682,2]
[347838815,1736146255120,-950.57,0.00010682,2]
[347838816,1736146255130,-614.5,0.00010682,2]
[347838817,1736146255139,-500.0,0.00010682,2]
[347838818,1736146255148,-500.0,0.00010682,2]
[347838819,1736146255158,-500.0,0.00010682,2]
[347838820,1736146255167,-589.55,0.00010682,2]
[347838821,1736146255177,-536.0,0.00010683,2]
[347838822,1736146255186,-1036.35,0.00010683,2]
[347838823,1736146255195,-1081.26,0.00010683,2]
[347838824,1736146255205,-2048.23,0.00010683,2]
[347838825,1736146255214,-957.56,0.00010683,2]
[347838826,1736146255223,-1278.88,0.00010683,2]
[347838827,1736146255232,-644.36,0.00010683,2]
[347838828,1736146255242,-1260.55,0.00010683,2]
[347838829,1736146255251,-731.83,0.00010683,2]
[347838830,1736146255260,-1340.36,0.00010683,2]
[347838831,1736146255269,-500.0,0.00010683,2]
[347838832,1736146255279,-1187.99,0.00010683,2]
[347838833,1736146255288,-2277.14,0.00010683,2]
[347838834,1736146255298,-500.0,0.00010683,2]
[347838835,1736146255308,-1121.46,0.00010683,2]
[347838836,1736146255317,-500.0,0.00010683,2]
[347838837,1736146255327,-815.01,0.00010683,2]
[347838838,1736146255336,-500.0,0.00010684,2]
[347838839,1736146255345,-500.0,0.00010684,2]
[347838840,1736146255354,-500.0,0.00010684,2]
[347838841,1736146255363,-241.10395257,0.00010684,2]
[347838842,1736146255373,-500.0,0.00010684,2]
[347838843,1736146255382,-576.01,0.00010684,2]
[347838844,1736146255392,-500.0,0.00010684,2]
[347838845,1736146255401,-255.86738962,0.00010684,2]
[347838846,1736146255411,-500.0,0.00010684,2]
[347838847,1736146255420,-500.0,0.00010684,2]
[347838848,1736146255429,-768.67,0.00010684,2]
[347838849,1736146255438,-569.39,0.00010684,2]
[347838850,1736146255447,-700.11,0.00010684,2]
[347838851,1736146255457,-785.52,0.00010684,2]
[347838852,1736146255466,-500.0,0.00010684,2]
[347838853,1736146255475,-500.0,0.00010684,2]
[347838854,1736146255485,-1317.62,0.00010684,2]
[347838855,1736146255494,-500.0,0.00010684,2]
[347838856,1736146255503,-500.0,0.00010684,2]
[347838857,1736146255513,-500.0,0.00010684,2]
[347838858,1736146255522,-672.37,0.00010684,2]
[347838859,1736146255531,-500.0,0.00010684,2]
[347838860,1736146255541,-500.0,0.00010684,2]
[347838861,1736146255551,-3343.13,0.00010684,2]
[347838862,1736146255561,-500.0,0.00010684,2]
[347838863,1736146255571,-500.0,0.00010684,2]
[347838864,1736146255580,-500.0,0.00010684,2]
[347838865,1736146255590,-500.0,0.00010684,2]
[347838866,1736146255599,-500.0,0.00010684,2]
[347838867,1736146255608,-500.0,0.00010684,2]
[347838868,1736146255617,-1000.0,0.00010684,2]
[347838869,1736146255626,-500.0,0.00010684,2]
[347838870,1736146255636,-507.32,0.00010684,2]
[347838871,1736146255646,-536.63,0.00010684,2]
[347838872,1736146255656,-500.0,0.00010684,2]
[347838873,1736146255666,-500.0,0.00010684,2]
[347838874,1736146255675,-500.0,0.00010684,2]
[347838875,1736146255685,-500.0,0.00010684,2]
[347838876,1736146255694,-500.0,0.00010684,2]
[347838877,1736146255703,-500.0,0.00010684,2]
[347838878,1736146255713,-1691.28,0.00010684,2]
[347838879,1736146255722,-500.0,0.00010684,2]
[347838880,1736146255731,-716.23,0.00010684,2]
[347838881,1736146255740,-500.0,0.00010684,2]
[347838882,1736146255750,-500.0,0.00010684,2]
[347838883,1736146255759,-500.0,0.00010684,2]
[347838884,1736146255771,-602.7,0.00010684,2]
[347838885,1736146255780,-500.0,0.00010684,2]
[347838886,1736146255790,-500.0,0.00010684,2]
[347838887,1736146255799,-500.0,0.00010684,2]
[347838888,1736146255808,-500.0,0.00010684,2]
[347838889,1736146255817,-578.34,0.00010684,2]
[347838890,1736146255827,-709.13,0.00010684,2]
[347838891,1736146255836,-501.0,0.00010712,2]
[347838892,1736146255845,-2004.85362679,0.00010796,2]
[347838893,1736146255854,-500.0,0.00010821,2]
[347838894,1736146255863,-500.0,0.00010821,2]
[347838895,1736146255872,-430.4,0.00010821,2]
[347838896,1736146255881,-500.0,0.00010821,2]
[347838897,1736146255891,-500.0,0.00010821,2]
[347838898,1736146255900,-500.0,0.00010821,2]
[347838899,1736146255909,-500.0,0.00010821,2]
[347838900,1736146255918,-528.2,0.00010821,2]
[347838901,1736146255927,-493.42266276,0.00010821,2]
[347838902,1736146255936,-500.0,0.00010821,2]
[347838903,1736146255946,-500.0,0.00010821,2]
[347838904,1736146255955,-500.0,0.00010821,2]
[347838905,1736146255965,-500.0,0.00010821,2]
[347838906,1736146255974,-500.0,0.00010821,2]
[347838907,1736146255983,-500.0,0.00010821,2]
[347838908,1736146255992,-500.0,0.00010821,2]
[347838909,1736146256002,-500.0,0.00010821,2]
[347838910,1736146256011,-500.0,0.00010821,2]
[347838911,1736146256020,-500.0,0.00010821,2]
[347838912,1736146256029,-500.0,0.00010821,2]
[347838913,1736146256039,-500.0,0.00010821,2]
[347838914,1736146256048,-500.0,0.00010821,2]
[347838915,1736146256057,-500.0,0.00010821,2]
[347838916,1736146256066,-500.0,0.00010821,2]
[347838917,1736146256075,-500.0,0.00010821,2]
[347838918,1736146256084,-500.0,0.00010821,2]
[347838919,1736146256093,-500.0,0.00010821,2]
[347838920,1736146256102,-500.0,0.00010821,2]
[347838921,1736146256111,-500.0,0.00010821,2]
[347838922,1736146256119,-500.0,0.00010821,2]
[347838923,1736146256128,-300.70864044,0.00010821,2]
[347838924,1736146256138,-500.0,0.00010821,2]
[347838925,1736146256147,-500.0,0.00010821,2]
[347838926,1736146256156,-587.21,0.00010821,2]
[347838927,1736146256166,-500.0,0.00010821,2]
[347838928,1736146256176,-500.0,0.00010821,2]
[347838929,1736146256185,-4772.46,0.00010821,2]
[347838930,1736146256194,-4343.04,0.00010821,2]
[347838931,1736146256204,-500.0,0.00010821,2]
[347838932,1736146256213,-500.0,0.00010821,2]
[347838933,1736146256222,-1700.1,0.00010821,2]
[347838934,1736146256231,-500.0,0.00010821,2]
[347838935,1736146256241,-1677.41,0.00010821,2]
[347838936,1736146256250,-1979.36,0.00010821,2]
[347838937,1736146256259,-500.0,0.00010821,2]
[347838938,1736146256269,-2912.5,0.00010821,2]
[347838939,1736146256278,-637.75,0.00010821,2]
[347838940,1736146256287,-500.0,0.00010821,2]
[347838941,1736146256297,-2622.3,0.00010821,2]
[347838942,1736146256306,-758.31,0.00010821,2]
[347838943,1736146256316,-500.0,0.00010821,2]
[347838944,1736146256325,-321.18,0.00010821,2]
[347838945,1736146256335,-500.0,0.00010821,2]
[347838946,1736146256344,-500.0,0.00010821,2]
[347838947,1736146256353,-500.0,0.00010821,2]
[347838948,1736146256363,-500.0,0.00010821,2]
[347838949,1736146256373,-330.27,0.00010821,2]
[347838950,1736146256383,-500.0,0.00010821,2]
[347838951,1736146256392,-500.0,0.00010855,2]
[347838952,1736146256401,-500.0,0.00010855,2]
[347838953,1736146256411,-500.0,0.00010855,2]
[347838954,1736146256420,-488.88864083,0.00010855,2]
[347838955,1736146256430,-500.0,0.00010855,2]
[347838956,1736146256440,-500.0,0.00010855,2]
[347838957,1736146256450,-500.0,0.00010855,2]
[347838958,1736146256460,-500.0,0.00010855,2]
[347838959,1736146256470,-1107.86,0.00010855,2]
[347838960,1736146256480,-526.06,0.00010855,2]
[347838961,1736146256490,-4758.37,0.00010855,2]
[347838962,1736146256500,-500.0,0.00010855,2]
[347838963,1736146256509,-556.63,0.00010855,2]
[347838964,1736146256519,-500.0,0.00010855,2]
[347838965,1736146256529,-500.0,0.00010855,2]
[347838966,1736146256540,-500.0,0.00010855,2]
[347838967,1736146256550,-1493.4,0.00010855,2]
[347838968,1736146256560,-550.47,0.00010855,2]
[347838969,1736146256570,-500.0,0.00010855,2]
[347838970,1736146256579,-2244.15,0.00010855,2]
[347838971,1736146256588,-632.11,0.00010855,2]
[347838972,1736146256598,-500.0,0.00010855,2]
[347838973,1736146256608,-500.0,0.00010855,2]
[347838974,1736146256618,-1083.83,0.00010855,2]
[347838975,1736146256627,-1023.4,0.00010855,2]
[347838976,1736146256637,-455.39,0.00010855,2]
[347838977,1736146256775,-255.0,0.00010888,2]
[347838978,1736146256801,-2300.0,0.000109,3]
[347838979,1736146256812,-1657.33,0.00010955,2]
[347838980,1736146256822,-704.79,0.00010955,2]
[347838981,1736146256831,-500.0,0.00010956,2]
[347838982,1736146256840,-1019.75,0.00010956,2]
[347838983,1736146256849,-500.0,0.00010956,2]
[347838984,1736146256858,-500.0,0.00010956,2]
[347838985,1736146256867,-500.0,0.00010956,2]
[347838986,1736146256876,-500.0,0.00010956,2]
[347838987,1736146256886,-1544.02,0.00010956,2]
[347838988,1736146256895,-500.0,0.00010956,2]
[347838989,1736146256904,-500.0,0.00010956,2]
[347838990,1736146256913,-500.0,0.00010956,2]
[347838991,1736146256922,-500.0,0.00010956,2]
[347838992,1736146256932,-582.38179807,0.00010956,2]
[347838993,1736146256941,-500.0,0.00010956,2]
[347838994,1736146256951,-500.0,0.00010956,2]
[347838995,1736146256960,-500.0,0.00010956,2]
[347838996,1736146256969,-500.0,0.00010956,2]
[347838997,1736146256978,-754.58,0.00010956,2]
[347838998,1736146256988,-500.0,0.00010956,2]
[347838999,1736146256997,-500.0,0.00010956,2]
[347839000,1736146257007,-836.56,0.00010956,2]
[347839001,1736146257016,-1621.684072,0.00010956,2]
[347839002,1736146257025,-500.0,0.00010956,2]
[347839003,1736146257036,-500.0,0.00010956,2]
[347839004,1736146257045,-500.0,0.00010956,2]
[347839005,1736146257055,-156.428393,0.00010956,2]
[347839006,1736146257064,-500.0,0.00010956,2]
[347839007,1736146257073,-500.0,0.00010956,2]
[347839008,1736146257083,-500.0,0.00010956,2]
[347839009,1736146257091,-2716.93,0.00010956,2]
[347839010,1736146257100,-1758.16002,0.00010956,2]
[347839011,1736146257110,-729.04,0.00010956,2]
[347839012,1736146257119,-500.0,0.00010956,2]
[347839013,1736146257128,-500.0,0.00010956,2]
[347839014,1736146257137,-500.0,0.00010956,2]